bitfinex/quotes_BTCUSD_20240827
["timestamp","ask_amount","ask_price","bid_price","bid_amount"]
[1724744090011,0.003943,63072.0,63071.0,0.58293]
[1724744091348,0.002943,63072.0,63071.0,0.58293]
[1724744091550,0.000943,63072.0,63071.0,0.55493]
[1724744091814,0.000943,63072.0,63071.0,0.58293]
[1724744091815,0.002943,63072.0,63071.0,0.58293]
[1724744093865,0.001943,63072.0,63071.0,0.56893]
[1724744094089,0.001943,63072.0,63071.0,0.346958]
[1724744094539,0.081543,63072.0,63071.0,0.124986]
[1724744094541,0.082543,63072.0,63071.0,0.138986]
[1724744094761,0.081543,63072.0,63071.0,0.110986]
[1724744094980,0.083543,63072.0,63071.0,0.138986]
[1724744095232,0.082543,63072.0,63071.0,0.138986]
[1724744095458,0.081543,63072.0,63071.0,0.110986]
[1724744095692,0.082543,63072.0,63071.0,0.124986]
[1724744096627,0.083543,63072.0,63071.0,0.138986]
[1724744097092,0.082543,63072.0,63071.0,0.124986]
[1724744097306,0.083543,63072.0,63071.0,0.138986]
[1724744097541,0.083543,63072.0,63071.0,0.124986]
[1724744097542,0.081543,63072.0,63071.0,0.124986]
[1724744097774,0.082543,63072.0,63071.0,0.028]
[1724744098459,0.082543,63072.0,63071.0,0.138986]
[1724744100757,0.146143,63072.0,63071.0,0.138986]
[1724744101297,0.146143,63072.0,63071.0,0.028]
[1724744103637,0.146143,63072.0,63071.0,0.138986]
[1724744103861,0.146143,63072.0,63071.0,0.360958]
[1724744104842,0.146143,63072.0,63071.0,0.138986]
[1724744107116,0.146143,63072.0,63071.0,0.360958]
[1724744107977,0.14595216,63072.0,63071.0,0.360958]
[1724744108335,0.14595216,63072.0,63071.0,0.138986]
[1724744110767,0.14595216,63072.0,63071.0,0.360958]
[1724744116556,0.00275216,63072.0,63071.0,0.72823]
[1724744117520,0.00275216,63072.0,63071.0,0.66443]
[1724744120340,0.00275216,63072.0,63071.0,0.58293]
[1724744125600,0.00275216,63072.0,63071.0,1.03883303]
[1724744126399,0.00275216,63072.0,63071.0,0.97543303]
[1724744129387,0.00275216,63072.0,63071.0,0.89403303]
[1724744131640,0.00275216,63072.0,63071.0,0.5838353]
[1724744131861,0.08185216,63072.0,63071.0,0.5838353]
[1724744135087,0.14725216,63072.0,63071.0,0.0289053]
[1724744135297,0.36922016,63072.0,63071.0,0.0289053]
[1724744135507,0.57538426,63072.0,63071.0,0.0289053]
[1724744135712,0.48020416,63072.0,63071.0,0.0289053]
[1724744136542,0.47820416,63072.0,63071.0,0.0009053]
[1724744136674,0.47920416,63072.0,63071.0,0.0139053]
[1724744136913,0.47920416,63072.0,63071.0,0.0279053]
[1724744136914,0.48020416,63072.0,63071.0,0.0279053]
[1724744138561,0.59914219,63072.0,63071.0,0.0279053]
[1724744139266,0.59914221,63072.0,63071.0,0.0279053]
[1724744140178,0.82111021,63072.0,63071.0,0.0279053]
[1724744140404,0.48020416,63072.0,63071.0,0.0279053]
[1724744141291,0.70217216,63072.0,63071.0,0.0279053]
[1724744142366,0.48020416,63072.0,63071.0,0.0279053]
[1724744142599,0.56933519,63072.0,63071.0,0.0279053]
[1724744142813,0.79130319,63072.0,63071.0,0.0279053]
[1724744143040,0.56933519,63072.0,63071.0,0.0279053]
[1724744143501,0.79130319,63072.0,63071.0,0.0279053]
[1724744144371,0.56933519,63072.0,63071.0,0.0279053]
[1724744144585,0.79130319,63072.0,63071.0,0.0279053]
[1724744145172,0.56933519,63072.0,63071.0,0.0279053]
[1724744145649,0.68817346,63072.0,63071.0,0.0279053]
[1724744145841,0.91014146,63072.0,63071.0,0.0279053]
[1724744150752,0.79130319,63072.0,63071.0,0.0279053]
[1724744151840,0.56933519,63072.0,63071.0,0.0279053]
[1724744152063,0.70217216,63072.0,63071.0,0.0279053]
[1724744152511,0.79719363,63072.0,63071.0,0.0279053]
[1724744152749,0.57522563,63072.0,63071.0,0.0279053]
[1724744155739,0.55145951,63072.0,63071.0,0.0279053]
[1724744156186,0.48020416,63072.0,63071.0,0.0279053]
[1724744156814,0.14725216,63072.0,63071.0,0.0279053]
[1724744157221,0.06815216,63072.0,63071.0,0.1388913]
[1724744158277,0.06815216,63072.0,63071.0,0.0279053]
[1724744160078,0.06796134,63072.0,63071.0,0.0279053]
[1724744164654,0.17894534,63072.0,63071.0,0.0279053]
[1724744165261,0.47891334,63072.0,63071.0,0.0279053]
[1724744165432,0.52640995,63072.0,63071.0,0.0279053]
[1724744166407,0.30444195,63072.0,63071.0,0.0279053]
[1724744166624,0.47891334,63072.0,63071.0,0.0279053]
[1724744171592,0.00256134,63072.0,63071.0,0.1388913]
[1724744172059,0.00256134,63072.0,63071.0,0.3608633]
[1724744173968,0.00256134,63072.0,63071.0,0.75066633]
[1724744174389,0.00256134,63072.0,63071.0,0.84783117]
[1724744174600,0.00256134,63072.0,63071.0,1.08699597]
[1724744175222,0.00156134,63072.0,63071.0,1.07299597]
[1724744175423,0.00056134,63072.0,63071.0,1.05999597]
[1724744175626,0.00056134,63072.0,63071.0,1.08699597]
[1724744175627,0.00256134,63072.0,63071.0,1.08699597]
[1724744175759,0.00156134,63072.0,63071.0,1.07299597]
[1724744177213,0.00156134,63072.0,63071.0,1.08699597]
[1724744177422,0.00056134,63072.0,63071.0,1.05999597]
[1724744178087,0.00056134,63072.0,63071.0,1.08799597]
[1724744178594,0.00056134,63072.0,63071.0,1.08799877]
[1724744181366,0.00056134,63072.0,63071.0,1.08799914]
[1724744181566,0.00056134,63072.0,63071.0,1.06980317]
[1724744183365,0.00056134,63072.0,63071.0,1.07080317]
[1724744183684,0.00056134,63072.0,63071.0,1.06980317]
[1724744183880,0.00056134,63072.0,63071.0,1.07080317]
[1724744186694,0.00056134,63072.0,63071.0,1.18800318]
[1724744187458,0.00056134,63072.0,63071.0,1.17080317]
[1724744187682,0.00056134,63072.0,63071.0,1.18799907]
[1724744190825,0.00056134,63072.0,63071.0,1.18799913]
[1724744194133,0.00056134,63072.0,63071.0,1.18799945]
[1724744194334,0.00056134,63072.0,63071.0,1.40997145]
[1724744197248,0.00056134,63072.0,63071.0,1.40996988]
[1724744200397,0.00056134,63072.0,63071.0,1.39277517]
[1724744200604,0.00056134,63072.0,63071.0,1.40996999]
[1724744202909,0.00056134,63072.0,63071.0,1.39596999]
[1724744203998,0.00056134,63072.0,63071.0,1.38196999]
[1724744204208,0.00037052,63072.0,63071.0,1.40996999]
[1724744204637,0.00037052,63072.0,63071.0,1.38196999]
[1724744204847,0.00037052,63072.0,63071.0,1.40996999]
[1724744206786,0.00037052,63072.0,63071.0,1.39277517]
[1724744207036,0.00037052,63072.0,63071.0,1.40996553]
[1724744207276,0.00037052,63072.0,63071.0,1.39277517]
[1724744207494,0.00037052,63072.0,63071.0,1.40996552]
[1724744210283,0.00037052,63072.0,63071.0,1.40996764]
[1724744211847,0.00037052,63072.0,63071.0,1.40996288]
[1724744213387,0.00037052,63072.0,63071.0,1.40996529]
[1724744214129,0.00037052,63072.0,63071.0,1.40996562]
[1724744214341,0.08257052,63072.0,63071.0,1.17833459]
[1724744214548,0.08257052,63072.0,63071.0,1.26746562]
[1724744214963,0.00037052,63072.0,63071.0,1.26746562]
[1724744218487,0.00037052,63072.0,63071.0,1.31470087]
[1724744219297,0.00037052,63072.0,63071.0,1.26746562]
[1724744219714,0.00037052,63072.0,63071.0,1.17833459]
[1724744219934,0.00037052,63072.0,63071.0,1.26746391]
[1724744220336,0.00037052,63072.0,63071.0,1.69024484]
[1724744220544,0.00037052,63072.0,63071.0,1.37914181]
[1724744220746,0.14227052,63072.0,63071.0,1.04549191]
[1724744221540,0.14227052,63072.0,63071.0,0.38841688]
[1724744222175,0.14227052,63072.0,63071.0,0.37122814]
[1724744222440,0.14237742,63072.0,63071.0,0.37442595]
[1724744222668,0.14237742,63072.0,63071.0,0.38842595]
[1724744222875,0.14237742,63072.0,63071.0,0.37442595]
[1724744223047,0.14237742,63072.0,63071.0,0.38842595]
[1724744223502,0.14237742,63072.0,63071.0,0.37442595]
[1724744223651,0.14237742,63072.0,63071.0,0.38842595]
[1724744223852,0.14237742,63072.0,63071.0,0.37442595]
[1724744224060,0.14237742,63072.0,63071.0,0.38842595]
[1724744224971,0.16722583,63072.0,63071.0,0.38842595]
[1724744225167,0.16722583,63072.0,63071.0,0.37122814]
[1724744225564,0.16722583,63072.0,63071.0,0.35722814]
[1724744226192,0.16722583,63072.0,63071.0,0.34322814]
[1724744226405,0.16722583,63072.0,63071.0,0.35722814]
[1724744226617,0.16722583,63072.0,63071.0,0.37122814]
[1724744227030,0.16722583,63072.0,63071.0,0.35722814]
[1724744227893,0.14237742,63072.0,63071.0,0.37122814]
[1724744230712,0.14237742,63072.0,63071.0,0.0289053]
[1724744231112,0.16722569,63072.0,63071.0,0.1398913]
[1724744231319,0.16722569,63072.0,63071.0,0.0289053]
[1724744232142,0.16722569,63072.0,63071.0,0.1398913]
[1724744232778,0.16722569,63072.0,63071.0,0.3618633]
[1724744232949,0.16722569,63072.0,63071.0,0.1398913]
[1724744240316,0.16722569,63072.0,63071.0,0.5838353]
[1724744240515,0.16722569,63072.0,63071.0,0.3618633]
[1724744244930,0.14237742,63072.0,63071.0,0.3618633]
[1724744250968,0.14237742,63072.0,63071.0,0.1398913]
[1724744251411,0.14237742,63072.0,63071.0,0.3618633]
[1724744252322,0.14237742,63072.0,63071.0,0.1398913]
[1724744255447,0.14237742,63072.0,63071.0,0.0289053]
[1724744258746,1.00839645,63072.0,63071.0,0.0289053]
[1724744259012,1.0794348,63072.0,63071.0,0.0289053]
[1724744259225,1.00820563,63072.0,63071.0,0.0289053]
[1724744259661,1.10317786,63072.0,63071.0,0.0289053]
[1724744259870,1.12692092,63072.0,63071.0,0.0289053]
[1724744260084,1.12692092,63072.0,63071.0,0.0009053]
[1724744260291,1.00820563,63072.0,63071.0,0.0139053]
[1724744260504,1.00820563,63072.0,63071.0,0.0279053]
[1724744260720,1.00820563,63072.0,63071.0,0.0139053]
[1724744260946,1.00820563,63072.0,63071.0,0.0029053]
[1724744261166,1.00820563,63072.0,63071.0,0.0039053]
[1724744261167,1.15066398,63072.0,63071.0,0.0039053]
[1724744261423,1.00820563,63072.0,63071.0,0.0019053]
[1724744261633,1.00820563,63072.0,63071.0,0.0029053]
[1724744262122,1.00820563,63072.0,63071.0,0.0039053]
[1724744266299,0.9190746,63072.0,63071.0,0.0039053]
[1724744266518,1.00820563,63072.0,63071.0,0.0039053]
[1724744266936,0.6971066,63072.0,63071.0,0.0039053]
[1724744267146,0.78623763,63072.0,63071.0,0.0039053]
[1724744270833,0.90497704,63072.0,63071.0,0.0039053]
[1724744271325,1.12694504,63072.0,63071.0,0.0039053]
[1724744271555,1.00820563,63072.0,63071.0,0.0039053]
[1724744271797,1.12693685,63072.0,63071.0,0.0039053]
[1724744272009,1.00820563,63072.0,63071.0,0.0039053]
[1724744273771,1.12692933,63072.0,63071.0,0.0039053]
[1724744275164,1.0377983,63072.0,63071.0,0.0039053]
[1724744275373,1.12692933,63072.0,63071.0,0.0039053]
[1724744282042,1.0377983,63072.0,63071.0,0.0039053]
[1724744282248,1.12692933,63072.0,63071.0,0.0039053]
[1724744283991,1.22692933,63072.0,63071.0,0.0039053]
[1724744284867,1.22690324,63072.0,63071.0,0.0039053]
[1724744287150,1.13777221,63072.0,63071.0,0.0039053]
[1724744287374,1.22690324,63072.0,63071.0,0.0039053]
[1724744289404,0.110999,63064.0,63059.0,0.0499106]
[1724744290175,0.13585445,63063.0,63059.0,0.0499106]
[1724744290736,0.13585445,63063.0,63059.0,0.0699106]
[1724744291115,0.111002,63062.0,63059.0,0.0699106]
[1724744291293,0.111002,63062.0,63059.0,0.032]
[1724744291901,0.111002,63062.0,63059.0,0.023]
[1724744292343,0.111002,63062.0,63059.0,0.033]
[1724744292936,0.111003,63061.0,63059.0,0.023]
[1724744293167,0.111003,63061.0,63059.0,0.011]
[1724744293371,0.111003,63061.0,63059.0,0.024]
[1724744294522,0.111003,63061.0,63059.0,0.011]
[1724744294722,0.112003,63061.0,63059.0,0.025]
[1724744294931,0.112003,63061.0,63059.0,0.014]
[1724744295316,0.112003,63061.0,63059.0,0.026]
[1724744296620,0.111005,63060.0,63059.0,0.026]
[1724744297030,0.111005,63060.0,63059.0,0.0269064]
[1724744297517,0.111005,63060.0,63059.0,0.0129064]
[1724744297937,0.111005,63060.0,63059.0,0.0269064]
[1724744298142,0.111005,63060.0,63059.0,0.0149064]
[1724744298349,0.111005,63060.0,63059.0,0.0279064]
[1724744300711,0.555025,63060.0,63059.0,0.0279064]
[1724744300920,0.62634193,63060.0,63059.0,0.0279064]
[1724744301094,0.70794193,63060.0,63059.0,0.0279064]
[1724744301341,0.50970425,63060.0,63059.0,0.0279064]
[1724744301562,0.414615,63060.0,63059.0,0.0279064]
[1724744301777,0.40437231,63060.0,63059.0,0.0279064]
[1724744302493,0.333015,63060.0,63059.0,0.0279064]
[1724744303635,0.398015,63060.0,63059.0,0.0279064]
[1724744305043,0.620025,63060.0,63059.0,0.0279064]
[1724744305452,0.698825,63060.0,63059.0,0.0279064]
[1724744314228,0.69863414,63060.0,63059.0,0.0279064]
[1724744315013,0.80963414,63060.0,63059.0,0.0279064]
[1724744316678,1.03164414,63060.0,63059.0,0.0279064]
[1724744316927,0.80963414,63060.0,63059.0,0.0279064]
[1724744317065,1.03164414,63060.0,63059.0,0.0279064]
[1724744317272,1.03175104,63060.0,63059.0,0.0279064]
[1724744317676,0.80974104,63060.0,63059.0,0.0279064]
[1724744321158,0.81056504,63060.0,63059.0,0.0279064]
[1724744345847,0.95340668,63060.0,63059.0,0.0279064]
[1724744347213,1.04253771,63060.0,63059.0,0.0279064]
[1724744349525,0.92170607,63060.0,63059.0,0.0279064]
[1724744353695,0.83257504,63060.0,63059.0,0.0279064]
[1724744354106,0.92170607,63060.0,63059.0,0.0279064]
[1724744354544,0.68877504,63060.0,63059.0,0.0279064]
[1724744359510,0.77790607,63060.0,63059.0,0.0279064]
[1724744367389,0.92640607,63060.0,63059.0,0.0279064]
[1724744370119,0.92621521,63060.0,63059.0,0.0279064]
[1724744372371,1.08709245,63060.0,63059.0,0.0279064]
[1724744372597,0.92621521,63060.0,63059.0,0.0279064]
[1724744372803,1.08709245,63060.0,63059.0,0.0279064]
[1724744373413,1.08709245,63060.0,63059.0,0.0149064]
[1724744373837,1.08709245,63060.0,63059.0,0.0189064]
[1724744374042,1.08709245,63060.0,63059.0,0.0049064]
[1724744374244,1.08709245,63060.0,63059.0,0.0009064]
[1724744374420,1.08709245,63060.0,63059.0,0.0059064]
[1724744374647,1.30910245,63060.0,63059.0,0.0059064]
[1724744374859,1.08709245,63060.0,63059.0,0.0059064]
[1724744375291,1.25022521,63060.0,63059.0,0.0059064]
[1724744375503,1.48483785,63060.0,63059.0,0.0059064]
[1724744375706,1.47223521,63060.0,63059.0,0.0099064]
[1724744376117,1.47223521,63060.0,63059.0,0.0059064]
[1724744376328,1.47323521,63060.0,63059.0,0.0059064]
[1724744376893,1.47223521,63060.0,63059.0,0.0059064]
[1724744377105,1.25022521,63060.0,63059.0,0.0009064]
[1724744377677,1.41083633,63060.0,63059.0,0.0009064]
[1724744378090,1.41183633,63060.0,63059.0,0.0009064]
[1724744378695,1.41283633,63060.0,63059.0,0.0009064]
[1724744380115,1.25222521,63060.0,63059.0,0.0009064]
[1724744380949,1.25022521,63060.0,63059.0,0.0009064]
[1724744381283,1.25122521,63060.0,63059.0,0.0009064]
[1724744381481,1.25022521,63060.0,63059.0,0.0009064]
[1724744381798,1.24822521,63060.0,63059.0,0.0009064]
[1724744382002,1.25122521,63060.0,63059.0,0.0009064]
[1724744382451,1.24922521,63060.0,63059.0,0.0009064]
[1724744382775,1.25122521,63060.0,63059.0,0.0009064]
[1724744393473,1.47323521,63060.0,63059.0,0.0009064]
[1724744395327,1.25122521,63060.0,63059.0,0.0009064]
[1724744395949,1.47323521,63060.0,63059.0,0.0009064]
[1724744396994,1.25122521,63060.0,63059.0,0.0009064]
[1724744398251,1.25122521,63060.0,63047.0,0.0765]
[1724744398252,0.0794,63058.0,63047.0,0.0765]
[1724744398427,0.31905512,63048.0,63047.0,0.0765]
[1724744398632,0.64426303,63048.0,63047.0,0.0765]
[1724744398990,0.66912401,63048.0,63047.0,0.0765]
[1724744399566,0.64526303,63048.0,63047.0,0.0865]
[1724744399929,0.67012402,63048.0,63047.0,0.0865]
[1724744400514,0.67012402,63048.0,63047.0,0.0875]
[1724744401127,0.67112402,63048.0,63047.0,0.0995]
[1724744401818,0.67112402,63048.0,63047.0,0.023]
[1724744402188,1.03147702,63048.0,63047.0,0.023]
[1724744402390,1.15037754,63048.0,63047.0,0.023]
[1724744402763,1.15037754,63048.0,63047.0,0.0239064]
[1724744403466,1.03147702,63048.0,63047.0,0.0239064]
[1724744403809,1.03047702,63048.0,63047.0,0.0109064]
[1724744403938,1.03047702,63048.0,63047.0,0.0139064]
[1724744404145,0.222062,63046.0,63041.0,0.0009053]
[1724744404346,0.111037,63042.0,63041.0,0.0009053]
[1724744404557,0.46206693,63042.0,63041.0,0.0009053]
[1724744404767,0.68414455,63042.0,63041.0,0.0009053]
[1724744404972,0.77327558,63042.0,63041.0,0.0009053]
[1724744405167,0.68414455,63042.0,63041.0,0.0009053]
[1724744405437,0.46207055,63042.0,63041.0,0.0049053]
[1724744405665,0.46307055,63042.0,63041.0,0.0159053]
[1724744405917,0.24099655,63042.0,63041.0,0.0119053]
[1724744406119,0.24099655,63042.0,63041.0,0.1584053]
[1724744406120,0.1934242,63042.0,63041.0,0.1584053]
[1724744406341,0.1944242,63042.0,63041.0,0.1674053]
[1724744407463,0.0833872,63042.0,63041.0,0.1674053]
[1724744407620,0.0823872,63042.0,63041.0,0.4895203]
[1724744408022,0.0833872,63042.0,63041.0,0.58865133]
[1724744408845,0.0823872,63042.0,63041.0,0.57865133]
[1724744409250,0.0833872,63042.0,63041.0,0.58965133]
[1724744411110,0.10824851,63042.0,63041.0,0.58965133]
[1724744413380,0.10824851,63042.0,63041.0,0.5005203]
[1724744413741,0.0833872,63042.0,63041.0,0.5005203]
[1724744414963,0.0833872,63042.0,63041.0,0.2784433]
[1724744415159,0.0833872,63042.0,63041.0,0.1674053]
[1724744416505,0.13095955,63042.0,63041.0,0.1674053]
[1724744416932,0.0833872,63042.0,63041.0,0.1674053]
[1724744417400,0.0833872,63042.0,63041.0,0.5005203]
[1724744419126,0.0833872,63042.0,63041.0,0.73184239]
[1724744419532,0.0833872,63042.0,63041.0,0.50976539]
[1724744420162,0.10824825,63042.0,63041.0,0.5005203]
[1724744420721,0.28348525,63042.0,63041.0,0.0209053]
[1724744420920,0.60387948,63042.0,63041.0,0.0209053]
[1724744421153,0.40559166,63042.0,63041.0,0.0209053]
[1724744421709,0.40618376,63042.0,63041.0,0.0209053]
[1724744422692,0.62825776,63042.0,63041.0,0.0209053]
[1724744422976,0.62508224,63042.0,63041.0,0.0209053]
[1724744424469,0.62525862,63042.0,63041.0,0.0209053]
[1724744425930,0.50615135,63042.0,63041.0,0.0209053]
[1724744427984,0.111041,63040.0,63034.0,0.11105]
[1724744430507,0.113041,63040.0,63034.0,0.12105]
[1724744431736,0.04744791,63038.0,63034.0,0.12105]
[1724744433228,0.04744791,63038.0,63034.0,0.007]
[1724744433413,0.15849191,63038.0,63033.0,0.190351]
[1724744433625,0.15949191,63038.0,63034.0,0.007]
[1724744433776,0.15949191,63038.0,63033.0,0.183351]
[1724744433777,0.0325819,63034.0,63033.0,0.183351]
[1724744434374,0.05744513,63034.0,63033.0,0.183351]
[1724744434608,0.05744513,63034.0,63033.0,0.408456]
[1724744434804,0.05744513,63034.0,63033.0,0.49758703]
[1724744435007,0.05744513,63034.0,63033.0,0.49458703]
[1724744435251,0.05844513,63034.0,63033.0,0.50158703]
[1724744436630,0.05944513,63034.0,63033.0,0.50158703]
[1724744437413,0.05944513,63034.0,63033.0,0.72369203]
[1724744439357,0.05944513,63034.0,63033.0,0.72459843]
[1724744440001,0.05944513,63034.0,63033.0,0.69901653]
[1724744440002,0.02686323,63034.0,63033.0,0.69901653]
[1724744440419,0.002,63034.0,63033.0,0.69901653]
[1724744442111,0.002,63034.0,63033.0,0.6098855]
[1724744442325,0.002,63034.0,63033.0,0.5631674]
[1724744443169,0.001,63034.0,63033.0,0.5631674]
[1724744443500,0.002,63034.0,63033.0,0.5561674]
[1724744443711,0.001,63034.0,63033.0,0.5561674]
[1724744443920,0.1452,63037.0,63036.0,0.333142]
[1724744443921,0.0786,63037.0,63036.0,0.333142]
[1724744444945,0.0796,63037.0,63036.0,0.333142]
[1724744445379,0.002,63037.0,63036.0,0.333142]
[1724744447719,0.0842,63037.0,63036.0,0.333142]
[1724744450056,0.0842,63037.0,63036.0,0.460542]
[1724744451777,0.0842,63037.0,63036.0,0.349495]
[1724744452114,0.0842,63037.0,63036.0,0.1274]
[1724744452484,0.0842,63037.0,63036.0,0.238447]
[1724744453660,0.256545,63037.0,63036.0,0.1274]
[1724744456543,0.1455,63037.0,63036.0,0.1274]
[1724744457094,0.002,63037.0,63036.0,0.1274]
[1724744457484,0.002,63037.0,63036.0,0.238447]
[1724744457806,0.002,63037.0,63036.0,0.460542]
[1724744462800,0.002,63037.0,63036.0,0.682637]
[1724744463888,0.002,63037.0,63036.0,0.69983506]
[1724744464817,0.002824,63037.0,63036.0,0.69983506]
[1724744465024,0.002824,63037.0,63036.0,0.69983572]
[1724744469174,0.0029309,63037.0,63036.0,0.69983572]
[1724744471030,0.0029309,63037.0,63036.0,0.460542]
[1724744471228,0.0029309,63037.0,63036.0,0.47774037]
[1724744472339,0.1928759,63037.0,63036.0,0.1274]
[1724744472556,0.2555759,63037.0,63036.0,0.1274]
[1724744472767,0.48084242,63037.0,63036.0,0.1274]
[1724744472998,0.70293342,63037.0,63036.0,0.1274]
[1724744473215,0.70274248,63037.0,63036.0,0.1274]
[1724744473421,0.80274248,63037.0,63036.0,0.1274]
[1724744473652,1.18679442,63037.0,63036.0,0.0608]
[1724744473923,1.02602442,63037.0,63036.0,0.0608]
[1724744474393,1.04902442,63037.0,63036.0,0.0608]
[1724744474599,1.27011542,63037.0,63036.0,0.0608]
[1724744474799,1.27811542,63037.0,63036.0,0.0608]
[1724744475341,1.44760688,63037.0,63036.0,0.0608]
[1724744475788,1.44760076,63037.0,63036.0,0.0608]
[1724744475941,1.43960076,63037.0,63036.0,0.0608]
[1724744476347,1.28911542,63037.0,63036.0,0.0608]
[1724744477599,1.28911542,63037.0,63034.0,0.0009064]
[1724744477600,0.732345,63035.0,63034.0,0.0009064]
[1724744477774,1.0869814,63035.0,63034.0,0.0009064]
[1724744477981,1.3090794,63035.0,63034.0,0.0009064]
[1724744478424,1.38867203,63035.0,63034.0,0.0009064]
[1724744478903,1.39567203,63035.0,63034.0,0.0009064]
[1724744479108,1.17357403,63035.0,63034.0,0.0009064]
[1724744479500,1.5381774,63035.0,63034.0,0.0009064]
[1724744479696,0.702355,63034.0,63033.0,0.0009064]
[1724744480067,0.96775278,63034.0,63033.0,0.0009064]
[1724744480273,1.41195678,63034.0,63033.0,0.0009064]
[1724744480453,1.07232874,63034.0,63033.0,0.0009064]
[1724744480905,1.29443074,63034.0,63033.0,0.0009064]
[1724744481150,1.07232874,63034.0,63033.0,0.0009064]
[1724744481828,1.08632874,63034.0,63033.0,0.0009064]
[1724744482070,1.07232874,63034.0,63033.0,0.0009064]
[1724744482205,1.08632874,63034.0,63033.0,0.0009064]
[1724744482616,1.30843074,63034.0,63033.0,0.0009064]
[1724744482816,1.08632874,63034.0,63033.0,0.0009064]
[1724744483055,1.30843074,63034.0,63033.0,0.0009064]
[1724744483817,1.10032874,63034.0,63033.0,0.0009064]
[1724744484217,1.32243074,63034.0,63033.0,0.0009064]
[1724744487552,1.4645782,63034.0,63033.0,0.0009064]
[1724744487757,1.48945284,63034.0,63033.0,0.0009064]
[1724744488174,1.48939055,63034.0,63033.0,0.0009064]
[1724744488375,1.34730538,63034.0,63033.0,0.0009064]
[1724744492778,1.51450538,63034.0,63033.0,0.0009064]
[1724744492930,1.34730538,63034.0,63033.0,0.0009064]
[1724744495376,1.178053,63028.0,63027.0,0.47544132]
[1724744495582,1.39018403,63028.0,63027.0,0.47544132]
[1724744496058,1.46117991,63028.0,63027.0,0.47544132]
[1724744496266,1.39018403,63028.0,63027.0,0.47544132]
[1724744496586,1.40418403,63028.0,63027.0,0.47544132]
[1724744497080,1.39018403,63028.0,63027.0,0.47544132]
[1724744497224,1.46118037,63028.0,63027.0,0.47544132]
[1724744497608,1.40418403,63028.0,63027.0,0.47544132]
[1724744498057,1.39018403,63028.0,63027.0,0.47544132]
[1724744498265,1.40418403,63028.0,63027.0,0.47544132]
[1724744498467,1.41818403,63028.0,63027.0,0.47544132]
[1724744498645,1.46551133,63028.0,63027.0,0.47544132]
[1724744498844,1.45151133,63028.0,63027.0,0.47544132]
[1724744499048,1.40418403,63028.0,63027.0,0.47544132]
[1724744499244,1.41818403,63028.0,63027.0,0.47544132]
[1724744499446,1.39518403,63028.0,63027.0,0.47544132]
[1724744500646,1.38118403,63028.0,63027.0,0.47544132]
[1724744500850,1.39518403,63028.0,63027.0,0.47544132]
[1724744501280,1.38118403,63028.0,63027.0,0.47544132]
[1724744501680,1.39518403,63028.0,63027.0,0.47544132]
[1724744502305,1.38118403,63028.0,63027.0,0.47544132]
[1724744502507,1.39518403,63028.0,63027.0,0.47544132]
[1724744506330,1.4661724,63028.0,63027.0,0.47544132]
[1724744508445,1.39518403,63028.0,63027.0,0.47544132]
[1724744509214,1.4898352,63028.0,63027.0,0.47544132]
[1724744510320,1.39518403,63028.0,63027.0,0.47544132]
[1724744511364,1.41818403,63028.0,63027.0,0.47544132]
[1724744514351,1.5783199,63028.0,63027.0,0.47544132]
[1724744514546,2.2783199,63028.0,63027.0,0.47544132]
[1724744515345,2.11818403,63028.0,63027.0,0.47544132]
[1724744523850,1.41818403,63028.0,63027.0,0.47544132]
[1724744524353,1.64030703,63028.0,63027.0,0.47544132]
[1724744524552,1.87479224,63028.0,63027.0,0.47544132]
[1724744524760,1.64030703,63028.0,63027.0,0.47544132]
[1724744524975,1.86243003,63028.0,63027.0,0.31519368]
[1724744525194,1.86243003,63028.0,63027.0,0.15653368]
[1724744526119,1.86243003,63028.0,63027.0,0.12480168]
[1724744526332,1.86243003,63028.0,63027.0,6.8e-07]
[1724744526979,2.56243003,63028.0,63027.0,6.8e-07]
[1724744527192,1.370297,63019.0,63013.0,0.000823]
[1724744527350,1.80458303,63019.0,63013.0,0.000823]
[1724744528095,1.82945969,63019.0,63013.0,0.000823]
[1724744528706,1.62130469,63019.0,63013.0,0.000823]
[1724744530506,1.63530469,63019.0,63013.0,0.000823]
[1724744532125,1.85745969,63019.0,63013.0,0.000823]
[1724744532555,1.63530469,63019.0,63013.0,0.000823]
[1724744532759,1.85745969,63019.0,63013.0,0.000823]
[1724744533206,2.55745969,63019.0,63013.0,0.000823]
[1724744534554,1.35457366,63019.0,63016.0,0.0633]
[1724744534763,1.44370469,63019.0,63016.0,0.0633]
[1724744535596,1.15457366,63019.0,63016.0,0.0633]
[1724744535796,1.16426184,63019.0,63016.0,0.0633]
[1724744535994,1.02154969,63019.0,63016.0,0.0633]
[1724744536686,1.02154969,63019.0,63013.0,0.000823]
[1724744538648,1.24454969,63019.0,63013.0,0.000823]
[1724744538854,1.60530469,63019.0,63013.0,0.000823]
[1724744539367,1.61166869,63019.0,63013.0,0.000823]
[1724744543515,2.53382369,63019.0,63013.0,0.000823]
[1724744544563,3.97932369,63019.0,63013.0,0.000823]
[1724744544776,3.51344406,63019.0,63013.0,0.000823]
[1724744545011,3.26532369,63019.0,63013.0,0.000823]
[1724744545425,3.27932369,63019.0,63013.0,0.000823]
[1724744545630,3.26532369,63019.0,63013.0,0.000823]
[1724744545841,3.27932369,63019.0,63013.0,0.000823]
[1724744546042,3.97932369,63019.0,63013.0,0.000823]
[1724744547725,3.27932369,63019.0,63013.0,0.000823]
[1724744547956,3.97932369,63019.0,63013.0,0.000823]
[1724744550207,3.81182369,63019.0,63013.0,0.000823]
[1724744550479,3.58966869,63019.0,63013.0,0.000823]
[1724744551214,3.59049269,63019.0,63013.0,0.000823]
[1724744552148,3.81264769,63019.0,63013.0,0.000823]
[1724744552387,3.59049269,63019.0,63013.0,0.000823]
[1724744553727,2.89049269,63019.0,63013.0,0.000823]
[1724744555801,1.61249269,63019.0,63013.0,0.000823]
[1724744556654,2.31249269,63019.0,63013.0,0.000823]
[1724744563759,2.33737579,63019.0,63013.0,0.000823]
[1724744563974,1.63737579,63019.0,63013.0,0.000823]
[1724744565832,1.55139269,63019.0,63013.0,0.000823]
[1724744566929,2.25139269,63019.0,63013.0,0.000823]
[1724744569481,2.48569084,63019.0,63013.0,0.000823]
[1724744570571,2.55149084,63019.0,63013.0,0.000823]
[1724744571102,2.31719269,63019.0,63013.0,0.000823]
[1724744571897,2.53934769,63019.0,63013.0,0.000823]
[1724744572127,2.31719269,63019.0,63013.0,0.000823]
[1724744574187,2.53934769,63019.0,63013.0,0.000823]
[1724744575013,1.83934769,63019.0,63013.0,0.000823]
[1724744577905,2.53934769,63019.0,63013.0,0.000823]
[1724744581380,2.77374508,63019.0,63013.0,0.000823]
[1724744581812,2.5391567,63019.0,63013.0,0.000823]